fUSD/lending_fUSD_20240919
["ID","MTS","AMOUNT","RATE_DAILY","PERIOD"]
[338530142,1726721439575,-151.0,0.00013,2]
[338530144,1726721439584,-151.0,0.00013,2]
[338530146,1726721439593,-151.0,0.00013,2]
[338530148,1726721439603,-151.0,0.00013,2]
[338530150,1726721439615,-151.0,0.00013,2]
[338530152,1726721439625,-383.960094,0.00013,2]
[338530154,1726721439634,-383.960094,0.00013,2]
[338530156,1726721439644,-383.960094,0.00013,2]
[338530157,1726721439653,-383.960094,0.00013,2]
[338530159,1726721439663,-383.960094,0.00013,2]
[338530161,1726721439672,-383.960094,0.00013,2]
[338530163,1726721439682,-192.988848,0.00013,2]
[338530165,1726721439692,-192.988848,0.00013,2]
[338530167,1726721439701,-192.988848,0.00013,2]
[338530168,1726721439711,-192.988848,0.00013,2]
[338530169,1726721439721,-192.988848,0.00013,2]
[338530170,1726721439730,-192.988848,0.00013,2]
[338530171,1726721439740,-151.0,0.00013,2]
[338530172,1726721439750,-151.0,0.00013,2]
[338530173,1726721439759,-151.0,0.00013,2]
[338530174,1726721439769,-295.039066,0.00013,2]
[338530175,1726721439778,-295.039066,0.00013,2]
[338530176,1726721439787,-295.039066,0.00013,2]
[338530177,1726721439797,-295.039066,0.00013,2]
[338530179,1726721439806,-295.039066,0.00013,2]
[338530180,1726721439815,-295.039066,0.00013,2]
[338530182,1726721439825,-454.071406,0.00013,2]
[338530183,1726721439838,-454.071406,0.00013,2]
[338530184,1726721439848,-454.071406,0.00013,2]
[338530185,1726721439858,-454.071406,0.00013,2]
[338530186,1726721439867,-454.071406,0.00013,2]
[338530187,1726721439877,-454.071406,0.00013,2]
[338530188,1726721439887,-527.284761,0.00013,2]
[338530189,1726721439897,-527.284761,0.00013,2]
[338530190,1726721439907,-527.284761,0.00013,2]
[338530191,1726721439917,-527.284761,0.00013,2]
[338530192,1726721439927,-527.284761,0.00013,2]
[338530193,1726721439937,-527.284761,0.00013,2]
[338530194,1726721439947,-151.0,0.00013,2]
[338530195,1726721439958,-151.0,0.00013,2]
[338530196,1726721439967,-151.0,0.00013,2]
[338530197,1726721439977,-535.641178,0.00013,2]
[338530198,1726721439986,-535.641178,0.00013,2]
[338530199,1726721439995,-535.641178,0.00013,2]
[338530200,1726721440005,-505.219601,0.00013,2]
[338530201,1726721440014,-505.219601,0.00013,2]
[338530203,1726721440024,-505.219601,0.00013,2]
[338530204,1726721440033,-535.641178,0.00013,2]
[338530206,1726721440043,-535.641178,0.00013,2]
[338530208,1726721440053,-535.641178,0.00013,2]
[338530209,1726721440063,-151.0,0.00013,2]
[338530210,1726721440072,-151.0,0.00013,2]
[338530211,1726721440081,-505.219601,0.00013,2]
[338530212,1726721440091,-234.099274,0.00013,2]
[338530213,1726721440103,-505.219601,0.00013,2]
[338530216,1726721440113,-505.219601,0.00013,2]
[338530217,1726721440122,-151.0,0.00013,2]
[338530218,1726721440133,-151.0,0.00013,2]
[338530219,1726721440143,-151.0,0.00013,2]
[338530220,1726721440153,-273.396864,0.00013,2]
[338530221,1726721440163,-273.396864,0.00013,2]
[338530222,1726721440172,-273.396864,0.00013,2]
[338530223,1726721440182,-273.396864,0.00013,2]
[338530224,1726721440192,-273.396864,0.00013,2]
[338530225,1726721440202,-273.396864,0.00013,2]
[338530226,1726721440219,-151.0,0.00013,2]
[338530227,1726721440228,-151.0,0.00013,2]
[338530228,1726721440238,-218.527243,0.00013,2]
[338530229,1726721440247,-200.0,0.00013,2]
[338530230,1726721440256,-6390.0919801,0.00013005,2]
[338530231,1726721440266,-224.9083912,0.00013005,2]
[338530232,1726721440276,-1172.9511524,0.00013014,2]
[338530233,1726721440285,-9570.69524648,0.00013031,2]
[338530234,1726721440294,-407.14044574,0.00013042,2]
[338530235,1726721440304,-210.981478,0.00013068,2]
[338530236,1726721440313,-210.981478,0.00013068,2]
[338530237,1726721440323,-151.0,0.00013068,2]
[338530239,1726721440333,-151.0,0.00013068,2]
[338530241,1726721440342,-292.657211,0.00013068,2]
[338530243,1726721440352,-383.960094,0.00013068,2]
[338530244,1726721440362,-383.960094,0.00013068,2]
[338530245,1726721440372,-192.988848,0.00013068,2]
[338530246,1726721440381,-192.988848,0.00013068,2]
[338530247,1726721440391,-151.0,0.00013068,2]
[338530248,1726721440402,-295.039066,0.00013068,2]
[338530249,1726721440412,-295.039066,0.00013068,2]
[338530250,1726721440422,-454.071406,0.00013068,2]
[338530251,1726721440432,-454.071396,0.00013068,2]
[338530252,1726721440441,-527.284761,0.00013068,2]
[338530253,1726721440451,-527.284768,0.00013068,2]
[338530254,1726721440461,-151.0,0.00013068,2]
[338530255,1726721440470,-535.641178,0.00013068,2]
[338530256,1726721440479,-505.219601,0.00013068,2]
[338530257,1726721440490,-535.641179,0.00013068,2]
[338530258,1726721440500,-505.219593,0.00013068,2]
[338530259,1726721440510,-151.0,0.00013068,2]
[338530260,1726721440520,-273.396864,0.00013068,2]
[338530261,1726721440532,-273.396872,0.00013068,2]
[338530262,1726721440542,-151.0,0.00013086,2]
[338530263,1726721440552,-208.8104,0.00013086,2]
[338530264,1726721440562,-208.8104,0.00013086,2]
[338530265,1726721440571,-1495.04849,0.00013086,2]
[338530266,1726721440581,-1495.04849,0.00013086,2]
[338530267,1726721440590,-708.794204,0.00013113,2]
[338530268,1726721440599,-708.794204,0.00013113,2]
[338530269,1726721440608,-2000.0,0.00013129,2]
[338530270,1726721440618,-200.0,0.00013129,2]
[338530271,1726721440627,-200.0,0.00013129,2]
[338530272,1726721440636,-1292.64824382,0.0001313,2]
[338530273,1726721440645,-200.0,0.0001313,2]
[338530274,1726721440654,-200.0,0.0001313,2]
[338530276,1726721440664,-9570.77,0.00013172,2]
[338530278,1726721440675,-7508.21,0.00013172,2]
[338530280,1726721440684,-1753.74,0.00013172,2]
[338530282,1726721440693,-5398.62,0.00013172,2]
[338530284,1726721440704,-3072.27,0.00013172,2]
[338530286,1726721440713,-500.0,0.00013172,2]
[338530288,1726721440722,-7199.78,0.00013172,2]
[338530290,1726721440732,-1066.3,0.00013172,2]
[338530292,1726721440741,-4515.3,0.00013172,2]
[338530293,1726721440752,-5983.57,0.00013172,2]
[338530295,1726721441003,-16126.74,0.00013172,2]
[338530296,1726721441013,-1532.1,0.00013172,2]
[338530297,1726721441022,-500.0,0.00013172,2]
[338530298,1726721441032,-1307.0,0.00013172,2]
[338530299,1726721441042,-4721.83,0.00013172,2]
[338530300,1726721441051,-500.0,0.00013172,2]
[338530301,1726721441061,-1100.01,0.00013172,2]
[338530302,1726721441071,-1156.05,0.00013172,2]
[338530303,1726721441081,-3682.71,0.00013172,2]
[338530304,1726721441091,-1544.08,0.00013172,2]
[338530305,1726721441101,-2120.78,0.00013172,2]
[338530306,1726721441111,-500.0,0.00013172,2]
[338530307,1726721441120,-920.53,0.00013172,2]
[338530308,1726721441130,-1663.81,0.00013172,2]
[338530309,1726721441140,-1016.51,0.00013172,2]
[338530310,1726721441150,-2108.0,0.00013172,2]
[338530311,1726721441160,-803.69,0.00013173,2]
[338530312,1726721441169,-374.27488923,0.00013173,2]
[338530313,1726721441179,-500.0,0.00013173,2]
[338530314,1726721441189,-317.7,0.00013173,2]
[338530315,1726721441198,-1045.08,0.00013173,2]
[338530316,1726721441211,-638.43,0.00013173,2]
[338530317,1726721441220,-656.17,0.00013173,2]
[338530318,1726721441230,-500.0,0.00013173,2]
[338530319,1726721441239,-2128.72,0.00013173,2]
[338530320,1726721441249,-500.0,0.00013173,2]
[338530321,1726721441259,-636.27,0.00013173,2]
[338530322,1726721441268,-1527.71,0.00013173,2]
[338530323,1726721441277,-546.15,0.00013173,2]
[338530324,1726721441286,-500.0,0.00013173,2]
[338530325,1726721441296,-500.0,0.00013173,2]
[338530326,1726721441305,-500.0,0.00013173,2]
[338530327,1726721441314,-2334.98,0.00013173,2]
[338530328,1726721441324,-1812.12,0.00013173,2]
[338530329,1726721441333,-2137.06,0.00013173,2]
[338530330,1726721441343,-529.5,0.00013173,2]
[338530331,1726721441354,-829.56,0.00013173,2]
[338530332,1726721441363,-1002.34,0.00013173,2]
[338530333,1726721441372,-500.0,0.00013173,2]
[338530334,1726721441382,-647.32,0.00013173,2]
[338530335,1726721441391,-1107.68,0.00013173,2]
[338530336,1726721441400,-500.0,0.00013173,2]
[338530337,1726721441410,-1200.49,0.00013173,2]
[338530338,1726721441420,-938.95,0.00013173,2]
[338530339,1726721441430,-500.0,0.00013173,2]
[338530340,1726721441439,-570.06,0.00013173,2]
[338530341,1726721441450,-500.0,0.00013173,2]
[338530342,1726721441462,-2438.23,0.00013173,2]
[338530343,1726721441472,-1723.42,0.00013173,2]
[338530344,1726721441481,-1549.04,0.00013173,2]
[338530345,1726721441490,-965.9,0.00013173,2]
[338530346,1726721441499,-689.45,0.00013173,2]
[338530347,1726721441509,-1555.36,0.00013173,2]
[338530348,1726721441518,-500.0,0.00013173,2]
[338530349,1726721441528,-833.73,0.00013173,2]
[338530350,1726721441538,-500.0,0.00013173,2]
[338530351,1726721441547,-1285.11,0.00013173,2]
[338530352,1726721441556,-500.0,0.00013173,2]
[338530353,1726721441566,-500.0,0.00013173,2]
[338530354,1726721441576,-3075.0,0.00013173,2]
[338530355,1726721441586,-25658.01,0.00013173,2]
[338530356,1726721441595,-513.63,0.00013173,2]
[338530357,1726721441607,-677.8,0.00013173,2]
[338530358,1726721441617,-500.0,0.00013173,2]
[338530359,1726721441627,-500.0,0.00013173,2]
[338530360,1726721441636,-631.78,0.00013173,2]
[338530361,1726721441646,-500.0,0.00013173,2]
[338530362,1726721441656,-55626.13,0.00013173,2]
[338530363,1726721441666,-809.94,0.00013173,2]
[338530364,1726721441675,-559.03,0.00013173,2]
[338530365,1726721441684,-1891.11,0.00013173,2]
[338530366,1726721441693,-589.63,0.00013173,2]
[338530367,1726721441702,-519.42,0.00013173,2]
[338530368,1726721441714,-500.0,0.00013173,2]
[338530369,1726721441723,-967.44,0.00013173,2]
[338530370,1726721441733,-571.18,0.00013173,2]
[338530371,1726721441742,-500.0,0.00013173,2]
[338530372,1726721441753,-500.0,0.00013173,2]
[338530373,1726721441762,-706.86,0.00013173,2]
[338530374,1726721441771,-500.0,0.00013173,2]
[338530375,1726721441780,-12266.92,0.00013173,2]
[338530376,1726721441789,-667.44,0.00013173,2]
[338530377,1726721441799,-500.0,0.00013173,2]
[338530378,1726721441810,-727.92,0.00013173,2]
[338530379,1726721441820,-684.68,0.00013173,2]
[338530380,1726721441834,-1449.11,0.00013173,2]
[338530381,1726721441846,-2133.44,0.00013173,2]
[338530382,1726721441855,-633.88,0.00013173,2]
[338530383,1726721441865,-1630.44,0.00013173,2]
[338530384,1726721441875,-500.0,0.00013173,2]
[338530385,1726721441884,-500.0,0.00013173,2]
[338530386,1726721441893,-520.15,0.00013173,2]
[338530387,1726721441902,-500.0,0.00013173,2]
[338530388,1726721441913,-890.98,0.00013173,2]
[338530389,1726721441923,-3075.27,0.00013173,2]
[338530390,1726721441932,-500.0,0.00013173,2]
[338530391,1726721441942,-4865.01,0.00013173,2]
[338530392,1726721441952,-500.0,0.00013173,2]
[338530393,1726721441965,-500.0,0.00013173,2]
[338530394,1726721441974,-500.0,0.00013173,2]
[338530395,1726721441983,-3909.77,0.00013173,2]
[338530396,1726721441992,-199.03,0.00013173,2]
[338530397,1726721442002,-561.76,0.00013173,2]
[338530398,1726721442011,-500.0,0.00013173,2]
[338530399,1726721442021,-611.87,0.00013173,2]
[338530400,1726721442031,-611.9,0.00013173,2]
[338530401,1726721442040,-407.14044574,0.00013185,2]
[338530402,1726721442051,-414.62869502,0.00013246,2]
[338530403,1726721442061,-200.0,0.0001326,2]
[338530404,1726721442071,-200.0,0.0001326,2]
[338530405,1726721442081,-200.0,0.00013261,2]
[338530406,1726721442090,-200.0,0.00013261,2]
[338530407,1726721442101,-152.34,0.00013262,2]
[338530408,1726721442110,-9570.69524648,0.00013264,2]
[338530409,1726721442120,-5614.92,0.0001327,2]
[338530410,1726721442129,-839.46,0.0001327,2]
[338530411,1726721442140,-5838.77,0.0001327,2]
[338530412,1726721442150,-8254.25,0.0001327,2]
[338530413,1726721442163,-500.0,0.0001327,2]
[338530414,1726721442172,-500.0,0.0001327,2]
[338530415,1726721442182,-8367.19,0.0001327,2]
[338530416,1726721442192,-500.0,0.0001327,2]
[338530417,1726721442202,-500.0,0.0001327,2]
[338530418,1726721442213,-398.937309,0.00013271,2]
[338530419,1726721442222,-398.937309,0.00013271,2]
[338530420,1726721442232,-151.0,0.00013271,2]
[338530421,1726721442241,-151.0,0.00013271,2]
[338530422,1726721442251,-151.0,0.00013271,2]
[338530423,1726721442260,-355.115025,0.00013271,2]
[338530424,1726721442270,-355.115025,0.00013271,2]
[338530425,1726721442280,-284.46163092,0.00013272,2]
[338530426,1726721442290,-500.0,0.00013272,2]
[338530427,1726721442300,-500.0,0.00013272,2]
[338530428,1726721442310,-500.0,0.00013272,2]
[338530429,1726721442320,-500.0,0.00013272,2]
[338530430,1726721442329,-500.0,0.00013272,2]
[338530431,1726721442339,-500.0,0.00013272,2]
[338530432,1726721442348,-500.0,0.00013272,2]
[338530433,1726721442358,-873.67,0.00013272,2]
[338530434,1726721442367,-500.0,0.00013272,2]
[338530435,1726721442376,-500.0,0.00013272,2]
[338530436,1726721442386,-3593.7,0.00013272,2]
[338530437,1726721442395,-500.0,0.00013272,2]
[338530438,1726721442404,-500.0,0.00013272,2]
[338530439,1726721442413,-1055.62,0.00013272,2]
[338530440,1726721442422,-500.0,0.00013272,2]
[338530441,1726721442432,-4490.06763311,0.00013272,2]
[338530442,1726721442889,-1253.48,0.00012898,2]
[338530443,1726721442899,-674.33,0.00012898,2]
[338530444,1726721442911,-500.0,0.00012899,2]
[338530445,1726721442923,-500.0,0.00012998,2]
[338530446,1726721442932,-1565.1,0.00012999,2]
[338530447,1726721442942,-1253.48,0.00013172,2]
[338530448,1726721442951,-674.33,0.00013172,2]
[338530449,1726721442964,-15509.93236689,0.00013272,2]
[338530450,1726721442974,-500.0,0.00013272,2]
[338530451,1726721442984,-3674.94,0.00013272,2]
[338530452,1726721442993,-3586.59,0.00013272,2]
[338530453,1726721443003,-500.0,0.00013272,2]
[338530454,1726721443013,-500.0,0.00013272,2]
[338530455,1726721443022,-651.72,0.00013272,2]
[338530456,1726721443032,-500.0,0.00013272,2]
[338530457,1726721443042,-186.8968441,0.00013272,2]
[338530458,1726721443052,-5850.28,0.00013272,2]
[338530459,1726721443062,-1382.02,0.00013272,2]
[338530460,1726721443071,-2255.74,0.00013272,2]
[338530461,1726721443081,-2984.89,0.00013272,2]
[338530462,1726721443090,-2539.01,0.00013272,2]
[338530463,1726721443100,-1228.99,0.00013272,2]
[338530464,1726721443111,-500.0,0.00013272,2]
[338530465,1726721443120,-864.0,0.00013272,2]
[338530466,1726721443130,-1567.12,0.00013272,2]
[338530467,1726721443140,-500.0,0.00013272,2]
[338530468,1726721443150,-518.7866102,0.00013272,2]
[338530469,1726721443160,-2137.82,0.00013272,2]
[338530470,1726721443169,-208.8104,0.00013272,2]
[338530471,1726721443179,-243.798423,0.00013272,2]
[338530472,1726721443189,-208.8104,0.00013272,2]
[338530473,1726721443198,-2542.22,0.00013272,2]
[338530474,1726721443210,-500.0,0.00013272,2]
[338530475,1726721443225,-1031.79,0.00013272,2]
[338530476,1726721443234,-500.0,0.00013272,2]
[338530477,1726721443243,-500.0,0.00013272,2]
[338530478,1726721443252,-500.0,0.00013272,2]
[338530479,1726721443261,-1495.04849,0.00013272,2]
[338530480,1726721443272,-1495.04849,0.00013272,2]
[338530481,1726721443282,-1495.04849,0.00013272,2]
[338530482,1726721443291,-1495.04849,0.00013272,2]
[338530483,1726721443300,-500.0,0.00013272,2]
[338530484,1726721443310,-1979.95,0.00013272,2]
[338530485,1726721443320,-718.39,0.00013272,2]
[338530486,1726721443329,-500.0,0.00013272,2]
[338530487,1726721443338,-2404.47,0.00013272,2]
[338530488,1726721443347,-630.37552574,0.00013272,2]
[338530489,1726721443356,-3103.02,0.00013272,2]
[338530490,1726721443366,-796.58,0.00013272,2]
[338530491,1726721443375,-500.0,0.00013272,2]
[338530492,1726721443385,-500.0,0.00013272,2]
[338530493,1726721443395,-1970.3,0.00013272,2]
[338530494,1726721443404,-500.0,0.00013272,2]
[338530495,1726721443414,-210.981478,0.00013272,2]
[338530496,1726721443423,-500.0,0.00013272,2]
[338530497,1726721443433,-210.981478,0.00013272,2]
[338530498,1726721443442,-852.6,0.00013272,2]
[338530499,1726721443451,-210.981478,0.00013272,2]
[338530500,1726721443465,-210.981472,0.00013272,2]
[338530501,1726721443474,-500.0,0.00013272,2]
[338530502,1726721443485,-1157.46,0.00013272,2]
[338530503,1726721443494,-151.0,0.00013272,2]
[338530504,1726721443504,-151.0,0.00013272,2]
[338530505,1726721443513,-500.0,0.00013272,2]
[338530506,1726721443523,-500.0,0.00013272,2]
[338530507,1726721443533,-500.0,0.00013272,2]
[338530508,1726721443542,-151.0,0.00013272,2]
[338530509,1726721443552,-151.0,0.00013272,2]
[338530510,1726721443561,-4549.72,0.00013272,2]
[338530511,1726721443571,-383.960094,0.00013272,2]
[338530512,1726721443580,-500.0,0.00013272,2]
[338530513,1726721443589,-383.960094,0.00013272,2]
[338530514,1726721443599,-383.960094,0.00013272,2]
[338530515,1726721443608,-383.960091,0.00013272,2]
[338530516,1726721443617,-500.0,0.00013272,2]
[338530517,1726721443627,-500.0,0.00013272,2]
[338530518,1726721443636,-500.0,0.00013272,2]
[338530519,1726721443645,-192.988848,0.00013272,2]
[338530520,1726721443655,-500.0,0.00013272,2]
[338530521,1726721443665,-192.988846,0.00013272,2]
[338530522,1726721443674,-500.0,0.00013272,2]
[338530523,1726721443683,-151.0,0.00013272,2]
[338530524,1726721443693,-500.0,0.00013272,2]
[338530525,1726721443702,-1025.3,0.00013272,2]
[338530526,1726721443713,-500.0,0.00013272,2]
[338530527,1726721443723,-295.039066,0.00013272,2]
[338530528,1726721443733,-295.039066,0.00013272,2]
[338530529,1726721443742,-500.0,0.00013272,2]
[338530530,1726721443752,-295.039066,0.00013272,2]
[338530531,1726721443761,-295.039074,0.00013272,2]
[338530532,1726721443771,-500.0,0.00013272,2]
[338530533,1726721443780,-500.0,0.00013272,2]
[338530534,1726721443789,-500.0,0.00013272,2]
[338530535,1726721443799,-502.83025352,0.00013272,2]
[338530536,1726721443808,-500.0,0.00013272,2]
[338530537,1726721443817,-500.0,0.00013272,2]
[338530538,1726721443826,-500.0,0.00013272,2]
[338530539,1726721443839,-5067.65,0.00013272,2]
[338530540,1726721443849,-500.0,0.00013272,2]
[338530541,1726721443858,-362.2616938,0.00013272,2]
[338530542,1726721443867,-2336.68,0.00013272,2]
[338530543,1726721443877,-500.0,0.00013272,2]
[338530544,1726721443886,-1015.0,0.00013272,2]
[338530545,1726721443895,-2447.39,0.00013272,2]
[338530546,1726721443906,-500.0,0.00013272,2]
[338530547,1726721443915,-500.0,0.00013272,2]
[338530548,1726721443924,-500.0,0.00013272,2]
[338530549,1726721443933,-500.0,0.00013272,2]
[338530550,1726721443942,-1390.48,0.00013272,2]
[338530551,1726721443951,-665.9,0.00013272,2]
[338530552,1726721443964,-343.34715687,0.00013272,2]
[338530553,1726721443973,-500.0,0.00013272,2]
[338530554,1726721443983,-487.44991157,0.00013272,2]
[338530555,1726721443992,-552.52,0.00013272,2]
[338530556,1726721444001,-1747.39,0.00013272,2]
[338530557,1726721444010,-500.0,0.00013272,2]
[338530558,1726721444019,-500.0,0.00013272,2]
[338530559,1726721444029,-538.3,0.00013272,2]
[338530560,1726721444039,-500.0,0.00013272,2]
[338530561,1726721444048,-2036.19,0.00013272,2]
[338530562,1726721444057,-500.0,0.00013272,2]
[338530563,1726721444067,-820.59,0.00013272,2]
[338530564,1726721444077,-338.18266302,0.00013272,2]
[338530565,1726721444086,-500.0,0.00013272,2]
[338530566,1726721444095,-500.0,0.00013272,2]
[338530567,1726721444105,-2577.48,0.00013272,2]
[338530568,1726721444114,-500.0,0.00013272,2]
[338530569,1726721444123,-500.0,0.00013272,2]
[338530570,1726721444133,-500.0,0.00013272,2]
[338530571,1726721444142,-940.21,0.00013272,2]
[338530572,1726721444152,-500.0,0.00013272,2]
[338530573,1726721444161,-500.0,0.00013272,2]
[338530574,1726721444170,-500.0,0.00013272,2]
[338530575,1726721444179,-4295.5,0.00013272,2]
[338530576,1726721444189,-535.00249759,0.00013272,2]
[338530577,1726721444198,-2214.16,0.00013272,2]
[338530578,1726721444209,-804.83,0.00013272,2]
[338530579,1726721444219,-500.0,0.00013272,2]
[338530580,1726721444228,-5318.52,0.00013272,2]
[338530581,1726721444237,-2948.94,0.00013272,2]
[338530582,1726721444248,-500.0,0.00013272,2]
[338530583,1726721444258,-883.11,0.00013272,2]
[338530584,1726721444267,-2430.05,0.00013272,2]
[338530585,1726721444276,-1347.59,0.00013272,2]
[338530586,1726721444285,-500.0,0.00013272,2]
[338530587,1726721444294,-500.0,0.00013272,2]
[338530588,1726721444303,-1784.36,0.00013272,2]
[338530589,1726721444312,-543.65,0.00013272,2]
[338530590,1726721444321,-500.0,0.00013272,2]
[338530591,1726721444330,-4898.56,0.00013272,2]
[338530592,1726721444339,-5474.71,0.00013272,2]
[338530593,1726721444349,-500.0,0.00013272,2]
[338530594,1726721444358,-3076.01,0.00013272,2]
[338530595,1726721444368,-1838.4,0.00013272,2]
[338530596,1726721444377,-2927.56,0.00013272,2]
[338530597,1726721444386,-3222.22,0.00013272,2]
[338530598,1726721444395,-500.0,0.00013272,2]
[338530599,1726721444405,-9867.63,0.00013272,2]
[338530600,1726721444414,-1000.0,0.00013272,2]
[338530601,1726721444423,-500.0,0.00013272,2]
[338530602,1726721444434,-3670.49,0.00013272,2]
[338530603,1726721444444,-3218.25,0.00013272,2]
[338530604,1726721444456,-2599.93,0.00013272,2]
[338530605,1726721444465,-500.0,0.00013273,2]
[338530606,1726721444474,-500.0,0.00013273,2]
[338530607,1726721444484,-500.0,0.00013273,2]
[338530608,1726721444493,-500.0,0.00013273,2]
[338530609,1726721444502,-500.0,0.00013273,2]
[338530610,1726721444512,-1036.42,0.00013273,2]
[338530611,1726721444522,-1814.59,0.00013273,2]
[338530612,1726721444532,-568.03,0.00013273,2]
[338530613,1726721444541,-684.07,0.00013273,2]
[338530614,1726721444551,-500.0,0.00013273,2]
[338530615,1726721444561,-1592.43,0.00013273,2]
[338530616,1726721444572,-500.0,0.00013273,2]
[338530617,1726721444582,-1457.88,0.00013273,2]
[338530618,1726721444591,-500.0,0.00013273,2]
[338530619,1726721444601,-388.34433609,0.00013273,2]
[338530620,1726721444611,-1465.29,0.00013273,2]
[338530621,1726721444620,-1173.04,0.00013273,2]
[338530622,1726721444629,-1533.0,0.00013273,2]
[338530623,1726721444639,-554.01,0.00013273,2]
[338530624,1726721444650,-500.0,0.00013273,2]
[338530625,1726721444659,-727.95,0.00013273,2]
[338530626,1726721444668,-500.0,0.00013273,2]
[338530627,1726721444677,-500.0,0.00013273,2]
[338530628,1726721444687,-500.0,0.00013273,2]
[338530629,1726721444696,-500.0,0.00013273,2]
[338530630,1726721444706,-500.0,0.00013273,2]
[338530631,1726721444716,-500.0,0.00013273,2]
[338530632,1726721444725,-524.98,0.00013273,2]
[338530633,1726721444735,-500.0,0.00013273,2]
[338530634,1726721444745,-890.61,0.00013273,2]
[338530635,1726721444757,-750.88,0.00013273,2]
[338530636,1726721444767,-151.0,0.00013273,2]
[338530637,1726721444776,-151.0,0.00013273,2]
[338530638,1726721444787,-150.0,0.00013273,2]
[338530639,1726721444796,-500.0,0.00013273,2]
[338530640,1726721444807,-500.0,0.00013273,2]
[338530641,1726721444818,-857.99,0.00013273,2]
[338530642,1726721444827,-500.0,0.00013273,2]
[338530643,1726721444843,-651.41,0.00013273,2]
[338530644,1726721444853,-714.27,0.00013273,2]
[338530645,1726721444864,-1246.84,0.00013273,2]
[338530646,1726721444875,-1875.92,0.00013273,2]
[338530647,1726721444884,-580.24,0.00013273,2]
[338530648,1726721444894,-154.864731,0.00013273,2]
[338530649,1726721444906,-500.0,0.00013273,2]
[338530650,1726721444917,-1045.57,0.00013273,2]
[338530651,1726721444927,-500.0,0.00013273,2]
[338530652,1726721444936,-500.0,0.00013273,2]
[338530653,1726721444947,-1994.98,0.00013273,2]
[338530654,1726721444956,-500.0,0.00013273,2]
[338530655,1726721444965,-500.0,0.00013273,2]
[338530656,1726721444974,-1444.54,0.00013273,2]
[338530657,1726721445220,-500.0,0.00013273,2]
[338530658,1726721445230,-500.0,0.00013273,2]
[338530659,1726721445239,-885.15,0.00013273,2]
[338530660,1726721445249,-882.5,0.00013273,2]
[338530661,1726721445258,-500.0,0.00013273,2]
[338530662,1726721445267,-1126.2,0.00013273,2]
[338530663,1726721445276,-1036.13,0.00013273,2]
[338530664,1726721445286,-500.0,0.00013273,2]
[338530665,1726721445295,-1210.41,0.00013273,2]
[338530666,1726721445304,-500.0,0.00013273,2]
[338530667,1726721445314,-721.93,0.00013273,2]
[338530668,1726721445323,-500.0,0.00013273,2]
[338530669,1726721445332,-890.07,0.00013273,2]
[338530670,1726721445342,-500.0,0.00013273,2]
[338530671,1726721445352,-500.0,0.00013273,2]
[338530672,1726721445361,-500.0,0.00013273,2]
[338530673,1726721445371,-531.95,0.00013273,2]